Cogmind - Beta 16.1 @@@ ROGUE MODE // 2026.03.26 @ 13:22:07 Player: Skrub Result: Destroyed by UB-BS8(R) with Subdweller Machine Gun Performance ------------- Evolutions (0) 0 Regions Visited (2) 400 Robots Destroyed (13) 65 Value Destroyed (256) 256 Prototype IDs (1) 20 Alien Tech Used (0) 0 Bonus (0) 0 TOTAL SCORE: 741 Bonus ------- None Cogmind --------- Core Integrity 0/250 Matter 285/300 Energy 178/180 System Corruption 0% Temperature Cool (4) Movement Hovering (56) Location -10/Subcaves Parts ------- > --- POWER (1) -------- Meta Core > --- PROPULSION (2+1) - Hover Unit Hover Unit > --- UTILITY (2+1) ---- Signal Interpreter Targeting Computer > --- WEAPON (2+1) ----- Particle Gun Multitool > --- INVENTORY (5) ---- 1B-0RG's Assimilator Peak State ------------ > --- POWER ------------ Meta Core > --- PROPULSION ------- Flight Unit Flight Unit > --- UTILITY ---------- Signal Interpreter Targeting Computer > --- WEAPON ----------- Particle Gun Multitool > --- INVENTORY -------- 1B-0RG's Assimilator [Rating: 27] Favorites ----------- Power Light Ion Engine Engine Light Ion Engine Power Core Meta Core Propulsion Flight Unit Hover Unit Hover Unit Flight Unit Flight Unit Utility Signal Interpreter Storage Small Storage Unit Processor Signal Interpreter Weapon Light Assault Rifle Energy Gun Particle Gun Energy Cannon Subdweller Beam Cannon Ballistic Gun Light Assault Rifle Special Weapon Multitool Build | -11 -10 -10 ------- Run | Yrd Mat Sub Slots Evolved . | . . . Power . | . . . Propulsion . | . . . Utility . | . . . Weapon . | . . . Parts Attached 21 | 3 13 5 Power 6 | 2 3 1 Engine 5 | 2 3 . Core 1 | . . 1 Reactor . | . . . Propulsion 6 | . 4 2 Treads . | . . . Leg . | . . . Wheel . | . . . Hover 2 | . . 2 Flight 4 | . 4 . Utility 3 | 1 2 . Device . | . . . Storage 1 | 1 . . Processor 2 | . 2 . Hackware . | . . . Protection . | . . . Artifact . | . . . Weapon 6 | . 4 2 Energy Gun 1 | . 1 . Energy Cannon 1 | . . 1 Ballistic Gun 3 | . 3 . Ballistic Cannon . | . . . Launcher . | . . . Special Weapon 1 | . . 1 Impact Weapon . | . . . Slashing Weapon . | . . . Piercing Weapon . | . . . Special Melee Weapon . | . . . Unidentified Prototypes 1 | . . 1 Parts Lost 7 | . 7 . Power 3 | . 3 . Propulsion 2 | . 2 . Utility . | . . . Weapon 2 | . 2 . Highest Loss Streak 3 | . 3 . To Critical Strikes . | . . . Average Backups 4 | 2 4 3 Power . | . . . Propulsion 2 | . 2 1 Utility . | . . . Weapon 1 | . 1 1 Tool/Special . | . . . Unused Backups 5 | . 2 3 Power . | . . . Propulsion 2 | . 2 . Utility . | . . . Weapon 2 | . . 2 Tool/Special 1 | . . 1 Average Slot Usage (%) 69 | . 68 76 Engine 11 | . 12 8 Flight 15 | . 15 16 Processor 26 | . 26 24 Energy Gun 2 | . 1 9 Ballistic Gun 11 | . 12 2 Peak Build Rating 27 | 1 8 27 Average Rating 6 | . 4 15 On Entrance 2 | . 1 6 Avg Prop Armor Cover (%) . | . . . Naked Turns . | . . . Heaviest Build 13 | 3 9 13 Greatest Support 12 | 3 8 12 Greatest Overweight (x) 3 | . 1 3 Average Overweight (x) . | . . . Largest Inventory Capacity 8 | 8 5 5 Average Capacity 5 | 5 5 5 Most Carried 5 | 5 5 5 Average Carried 4 | 3 4 4 Final Capacity 5 | 5 5 5 Final Carried 5 | 5 5 5 Class Distribution -------------------- 61% | Mutant 38% | Scavenger-Mutant Dominant Class ---------------- Mutant | -10/Materials Scavenger-Mutant | -10/Subcaves Resources | -11 -10 -10 ----------- Run | Yrd Mat Sub Matter Collected 542 | 131 334 77 Remotely . | . . . Salvage Created 362 | . 362 . Parts 26 | . 26 . Haulers Intercepted 1 | . 1 . Recyclers Shooed . | . . . Parts Field Recycled . | . . . Retrieved Matter . | . . . Parts Self-Destructed . | . . . Prevented . | . . . Parts Restored . | . . . Kills | -11 -10 -10 ------- Run | Yrd Mat Sub Combat Hostiles Destroyed 10 | . 10 . Guns 10 | . 10 . Classes Destroyed 4 | . 4 . Hauler 1 | . 1 . Watcher 2 | . 2 . Swarmer 6 | . 6 . Grunt 4 | . 4 . Best Kill Streak 4 | . 4 . Combat Bots Only 4 | . 4 . Max Kills in Single Turn 1 | . 1 . Gunslinging . | . . . Exploded . | . . . Melee . | . . . Uniques/NPCs Destroyed . | . . . Combat | -11 -10 -10 -------- Run | Yrd Mat Sub Hostile Shots Fired 103 | . 98 5 Missed 34 | . 31 3 Hits 69 | . 67 2 Projectile 69 | . 67 2 Critical Strikes 4 | . 4 . Damage Taken 735 | . 692 43 Core 264 | . 241 23 Absorbed by Shields . | . . . Core Remaining (%) 100 | 100 . . Volleys Fired 86 | . 75 11 Largest 2 | . 2 2 Hottest 145 | . 85 145 Shots Fired 144 | . 131 13 Gun 142 | . 131 11 Cannon 2 | . . 2 Launcher . | . . . Special . | . . . Kinetic 122 | . 122 . Thermal 22 | . 9 13 Explosive . | . . . Electromagnetic . | . . . Robot Hit Streak 12 | . 12 . Robot Miss Streak 4 | . 4 . Penetration Max . | . . . Secondary Targets 2 | . 2 . Max Gunslinging Chain 1 | . 1 . Shots Hit Robots 81 | . 81 . Core Hits 27 | . 27 . Critical Kills . | . . . Critical Parts Destroyed . | . . . Critical Strikes 1 | . 1 . Burn 1 | . 1 . Melee Attacks . | . . . Impact . | . . . Slashing . | . . . Piercing . | . . . Sneak Attacks . | . . . Combat Hostiles . | . . . Follow-up Attacks . | . . . Damage Inflicted 689 | . 689 . Guns 689 | . 689 . Cannons . | . . . Explosions . | . . . Melee . | . . . Ramming . | . . . Kinetic 595 | . 595 . Thermal 94 | . 94 . Explosive . | . . . Electromagnetic . | . . . Impact . | . . . Slashing . | . . . Piercing . | . . . Highest Corruption . | . . . Average Corruption . | . . . Corruption Purged . | . . . Corruption Blocked . | . . . Overload Shots . | . . . Overflow Damage . | . . . Projectiles . | . . . Explosions . | . . . Melee . | . . . Knockbacks . | . . . Impact . | . . . Kinetic . | . . . Secondary . | . . . Self-Inflicted Damage . | . . . Shots . | . . . Rammed . | . . . Targets Rammed . | . . . Kicked . | . . . Crushed . | . . . Highest Temperature 259 | . 259 30 Average Temperature 43 | . 44 20 Received Heat Transfer 225 | . 219 6 Siege Activations . | . . . Martial Activations . | . . . Shielding Activations . | . . . Robots Disrupted . | . . . Combat Hostiles . | . . . Robots Corrupted . | . . . Combat Hostiles . | . . . Parts Fried . | . . . Impact Corruptions . | . . . Robots Melted . | . . . Combat Hostiles . | . . . Parts Melted . | . . . Heat Transferred 296 | . 296 . Parts Sabotaged . | . . . Parts Stolen . | . . . Parts Stripped . | . . . Power Chain Reactions . | . . . Alert | -11 -10 -10 ------- Run | Yrd Mat Sub Maximum Alert Level . | . . . Low Security (%) 100 | 100 100 . Level 1 . | . . . Level 2 . | . . . Level 3 . | . . . Level 4 . | . . . Level 5 . | . . . High Security . | . . . Max Security . | . . . Peak Influence 134 | . 134 . Initial . | . . . Average 39 | . 40 . Influence Increases 390 | . 390 . Destroy 0b10 Robot/C 200 | . 200 . Destroy 0b10 Robot/NC 15 | . 15 . Destroy Leader 46 | . 46 . Successful Hack 24 | . 24 . Lose Combat Pursuer 105 | . 105 . Influence Decreases 390 | . 317 73 Entered New Map 36 | . . 36 Time Decay 294 | . 257 37 Lost Part 60 | . 60 . Squads Dispatched 3 | . 3 . Investigation 2 | . 2 . Extermination . | . . . Reinforcement 1 | . 1 . Assault . | . . . Garrison . | . . . Intercept . | . . . Searches Triggered . | . . . Construction Impeded . | . . . Haulers Reinforced . | . . . Active Scanning Responses . | . . . Cargo Convoy Interrupts . | . . . Stealth | -11 -10 -10 --------- Run | Yrd Mat Sub Distress Signals 1 | . 1 . Communications Jammed . | . . . Distress Signals . | . . . Times Spotted 28 | . 23 5 Peak Tracking Total 5 | . 5 5 Tactical Retreats 3 | . 3 . Traps | -11 -10 -10 ------- Run | Yrd Mat Sub Traps Triggered 1 | . 1 . Indirectly . | . . . Trap Hack Attempts . | . . . Triggered . | . . . Disarmed . | . . . Reprogrammed . | . . . Reused . | . . . Traps Extracted . | . . . Installed . | . . . Triggered . | . . . Machines | -11 -10 -10 ---------- Run | Yrd Mat Sub Machines Disabled 1 | . . 1 Max in Single Turn 1 | . . 1 Machines Repaired . | . . . Machines Dismantled . | . . . Machines Sabotaged . | . . . Overloaded Fab Kills . | . . . Hacking | -11 -10 -10 --------- Run | Yrd Mat Sub Machines Accessed 9 | . 9 . Terminals 8 | . 8 . Fabricators . | . . . Repair Stations . | . . . Recycling Units 1 | . 1 . Scanalyzers . | . . . Garrison Access . | . . . Total Hacks 30 | . 30 . Successful 14 | . 14 . Failed 16 | . 16 . Catastrophic . | . . . Database Lockouts . | . . . Manual 30 | . 30 . Terminals 26 | . 26 . Fabricators . | . . . Repair Stations . | . . . Recycling Units 4 | . 4 . Scanalyzers . | . . . Garrison Access . | . . . Terminal Hacks 1 | . 1 . Recall Investigation 1 | . 1 . Fabricator Hacks . | . . . Repair Station Hacks . | . . . Recycling Unit Hacks . | . . . Scanalyzer . | . . . Garrison Access Hacks . | . . . Unauthorized Hacks 13 | . 13 . Terminals 11 | . 11 . Botnet 6 | . 6 . Skim 5 | . 5 . Fabricators . | . . . Repair Stations . | . . . Recycling Units 2 | . 2 . Reject 1 | . 1 . Mask 1 | . 1 . Scanalyzers . | . . . Garrison Access . | . . . Data Cores Recovered . | . . . Used . | . . . Hacking Detections 9 | . 9 . Full Trace Events 2 | . 2 . Feedback Events . | . . . Feedback Blocked . | . . . Robot Schematics Acquired . | . . . Robots Built . | . . . Authchips . | . . . Time . | . . . Total Robot Build Rating . | . . . Part Schematics Acquired . | . . . Parts Built . | . . . Authchips . | . . . Time . | . . . Total Part Build Rating . | . . . Part Studies Acquired . | . . . Parts Repaired . | . . . Time . | . . . Parts Recycled . | . . . Recycled Matter . | . . . Retrieved Matter . | . . . Retrieved Components . | . . . Parts Scanalyzed . | . . . Part Schematics Acquired . | . . . Parts Damaged . | . . . Bothacking | -11 -10 -10 ------------ Run | Yrd Mat Sub Used RIF Installer . | . . . Robots Hacked . | . . . Non-combat . | . . . Combat . | . . . Robot Hacks Applied . | . . . Relay Couplers Released . | . . . Fabnet Peak Effective % . | . . . Robots Rewired . | . . . Allies Hacked . | . . . Hacks Repelled . | . . . Allies | -11 -10 -10 -------- Run | Yrd Mat Sub Total Allies . | . . . Largest Group . | . . . Highest-Rated Group . | . . . Highest-Rated Ally . | . . . Total Orders . | . . . Ally Attacks . | . . . Total Damage . | . . . Kills . | . . . Allies Corrupted . | . . . Allies Melted . | . . . Intel | -11 -10 -10 ------- Run | Yrd Mat Sub Active Infowar (turns) . | . . . Robot Analysis Total . | . . . Derelict Logs Recovered . | . . . Drone Launches . | . . . Drone Recoveries . | . . . Exploration | -11 -10 -10 ------------- Run | Yrd Mat Sub Turns Passed 1487 | 27 1277 183 Spaces Moved 1509 | 34 1194 281 Core 359 | 34 323 2 Treads . | . . . Legs . | . . . Wheels . | . . . Hover 121 | . . 121 Flight 1029 | . 871 158 Fastest Speed 37 | 50 37 37 Average Speed 44 | 50 42 49 Slowest Speed 200 | 50 117 200 Overloaded Moves . | . . . Propulsion Burnouts . | . . . Robots Hopped 11 | . 11 . Potential Cave-ins . | . . . Cave-ins Triggered . | . . . Exploration Rate (%) 39 | 4 99 16 Regions Visited 2 Branch Regions 1 Pre-discovered Areas . | . . . Known Exits Taken 1 | . 1 . Unknown Exits Taken 1 | 1 . . Scrap Searched 2 | . . 2 Spaces Dug . | . . . Terrain Destroyed . | . . . Melee . | . . . Projectile . | . . . AOE . | . . . Terrain Rammed . | . . . Walls Destroyed . | . . . Machines Disabled . | . . . Actions | -11 -10 -10 --------- Run | Yrd Mat Sub Total 2199 | 43 1839 317 Wait 555 | . 555 . Move 1486 | 33 1172 281 Hop 10 | . 10 . Pick Up 15 | 4 8 3 Fast Attach 17 | 3 9 5 Attach 10 | . 6 4 Detach 5 | 2 1 2 Swap . | . . . Drop 15 | 1 3 11 Fire 86 | . 75 11 Melee . | . . . Ram . | . . . Kick . | . . . Crush . | . . . Escape Stasis . | . . . Rewire . | . . . Trap . | . . . Miscellaneous . | . . . Route ------- -11/Scrapyard -10/Materials (discovered 5 exits: *Mat x3 / *Min / *Sub) -10/Subcaves History --------- Turn | Location | Event 10 | -11/Scrapyard | Discovered new exit (range 15) 28 | -11/Scrapyard | Entered Materials 162 | -10/Materials | Discovered new exit (range 12) 167 | -10/Materials | Identified exit to Materials 312 | -10/Materials | Build established: Mutant 621 | -10/Materials | Discovered new exit (range 8) 634 | -10/Materials | Identified exit to Mines 794 | -10/Materials | Core integrity fell below 50% 848 | -10/Materials | Discovered exit to Materials (range 9) 867 | -10/Materials | Lost 3 parts (1p1n1w) 914 | -10/Materials | Core integrity fell below 20% 967 | -10/Materials | Discovered exit to Materials (range 15) 1130 | -10/Materials | Build established: Scavenger-Mutant 1302 | -10/Materials | Discovered new exit (range 7) 1304 | -10/Materials | Identified exit to Subcaves 1305 | -10/Materials | Entered Subcaves 1306 | -10/Subcaves | Approached by a straggling Scientist 1320 | -10/Subcaves | Shifting Twisted Machinery released Sub. Beam Cannon 1399 | -10/Subcaves | Visited 4L-MR0's lab 1407 | -10/Subcaves | Found Prototype Power Core 1407 | -10/Subcaves | Identified Meta Core 1408 | -10/Subcaves | Attached Meta Core, gained temporary slots: Propulsion, Utility, Weapon 1413 | -10/Subcaves | Found Prototype Special Melee Weapon 1488 | -10/Subcaves | Destroyed by UB-BS8(R) with Subdweller Machine Gun Last Messages --------------- slot. 01408_ Core temporarily expanded with Weapon slot. 01410_ Dropped Hover Unit. 01411_ Dropped Sml. Laser. 01412_ Dropped Sub. Beam Cannon. 01413_ Acquired Prototype Special Melee Weapon. 01414_ Dropped Flight Unit. 01417_ Subatomizers dissect the Flight Unit. 01417_ Acquired Hover Unit. 01421_ 4L-MR0 mumbles to no one in particular: "Damn Subs sneaking around stealing my stuff." 01424_ 4L-MR0 mumbles: "I'm surprised some of them are even willing to come in here given their fear of my usual visitors." 01427_ Acquired 55 matter. O0-TY0(c): "I think it's somewhere southwest of here" 01472_ O0-TY0(c) destroyed. 01473_ RQ-3O0(R): "THANKSYOU!" Map ----- +----------------------------------------------------+ | ????????????????????????????????????####= + | | ????????????????????????????????????#"########### | | ####??###########?????????###???????# ####???#### | | # #?## #????????## ######??#" ""##### % | | #?# #????????# ##?##" # &[] | | ### #????????## ##?# ## " | | ######????## ######" ## ""# | | ##?###### ####" "##### | | ### #### ## " ### | | #### ## | | ## #?##### ######### | | ####### #?????# ######?#### | | ## #?????## #?????# ## ##??## | | ## #?????## #####?# ### #?# | | # ### #?????# ## ### ### ## "" | | # ## #?????### # ### """ | | ## ## ###???????# ## % | | ?# ###### ##????????## # # ## | | ?## ##????###????????## ## ### | | ??###???????????#???## ####### | | ??????????????### ### ##????# | | ?????????????# ###??# ## | | ?????????????? #### ## ### | | ??????????????? ## #?## | | ???????????????? ### ### ### ##??## | | ???????????????? ??####@ ####?###?###????#### | | ????????????????????????## ###??????????????????? | | ?????????????????????????# ##?????????????????? | | ?????????????????????????## ##????????????????? | | ????????????????????????### #????????????????? | | ????????????????????????# #????????????????? | | ????????????????????????## #????????????????? | | ?????????????????????????## #????????????????? | | ??????????????????????????####R##????????????????? | | ????????????????????????????# #?????????????????? | | ??????????????????????????? #?????????????????? | | ?????????????????????????? ?????????????????? | | ????????????????????????? ?????????????????? | | ????????????????????????### ##????????????????? | | ??????????????????????????## ##?????????????????? | | ???????????????????????????###???????????????????? | | ?????????????????????????????????????????????????? | | ?????????????????????????????????????????????????? | | ?????????????????????????????????????????????????? | | ?????????????????????????????????????????????????? | | ?????????????????????????????????????????????????? | | ?????????????????????????????????????????????????? | | ?????????????????????????????????????????????????? | | ?????????????????????????????????????????????????? | | ?????????????????????????????????????????????????? | +----------------------------------------------------+ Best States ------------- Heat Dissipation 25 Energy Generation 17 Energy Capacity 250 Matter Stores 300 Matter Capacity 300 Sight Range 16 Terrain Scan Density 10 Evasion (%) 62 Targeting Accuracy 5 Item Schematics ----------------- None Robot Schematics ------------------ None Fabricated ------------ Nothing Repaired ---------- Nothing Studied --------- None Alien Tech Used ----------------- None Achievements -------------- None Challenges ------------ None Game ------ Seed AntisysDataGravjet Manual? 0 Play Time 00:21:03 Cumulative 21.5 hours Start 2026.03.26 @ 13:00:07 End 2026.03.26 @ 13:22:07 Sessions 1 Manual Loads 0 Difficulty Rogue Special Mode None Game No. 30 Rogue 30 Adventurer 0 Explorer 0 Win Type - Total 0 Types 0/0/0/0/0/0/0/0/0/0 Lore% 9 Gallery% 19 Achievement% 18 Wizard Run 0 Options --------- Layout 1 ASCII 0 Keyboard 0 Movement Mouse Keybinds 0 Fullscreen 1 Font 48/Smallcaps Map View 50x35 Zoom Use 0% Tactical HUD 1 Map Filters NONE Filters NONE Steam 1 RUN: a93fcabe-899c-46ab-a2cc-326b89f03a69